bitfinex-derivatives/quotes_BTCF0:USTF0_20210406
["timestamp","ask_amount","ask_price","bid_price","bid_amount"]
[1617737007484,0.1031754,58077.0,58076.0,5.68462693]
[1617737008286,0.1031754,58077.0,58076.0,6.25469945]
[1617737008889,0.1031754,58077.0,58076.0,6.05469945]
[1617737009190,0.1031754,58077.0,58076.0,5.48462693]
[1617737013792,0.1031754,58077.0,58076.0,6.05403936]
[1617737014093,0.1031754,58077.0,58076.0,5.48462693]
[1617737014594,0.1031754,58077.0,58076.0,6.05403977]
[1617737015092,0.1031754,58077.0,58076.0,5.48462693]
[1617737018595,0.1031754,58077.0,58076.0,5.37737038]
[1617737018895,0.2427254,58077.0,58076.0,5.37737038]
[1617737019896,0.2427254,58077.0,58076.0,5.23451722]
[1617737022099,0.1031754,58077.0,58076.0,5.23451722]
[1617737024504,0.1031754,58077.0,58076.0,5.37736967]
[1617737026207,0.1031754,58077.0,58076.0,6.05418928]
[1617737026406,0.1031754,58077.0,58076.0,2.28928928]
[1617737026606,0.1031754,58077.0,58076.0,3.14643683]
[1617737027207,0.1031754,58077.0,58076.0,2.48503825]
[1617737027608,0.1031754,58077.0,58076.0,2.57686735]
[1617737028009,0.1031754,58077.0,58076.0,3.05459218]
[1617737028908,0.1031754,58077.0,58076.0,5.95649218]
[1617737029309,0.1031754,58077.0,58076.0,6.19117045]
[1617737030812,0.1031754,58077.0,58076.0,5.62161652]
[1617737031213,0.1031754,58077.0,58076.0,6.191176]
[1617737031413,0.1031754,58077.0,58076.0,6.08391945]
[1617737031614,0.1031754,58077.0,58076.0,5.51435997]
[1617737031815,0.1031754,58077.0,58076.0,4.51435997]
[1617737032015,0.1031754,58077.0,58076.0,5.51435997]
[1617737033617,0.1031754,58077.0,58076.0,4.51435997]
[1617737034118,0.1031754,58077.0,58076.0,5.51435997]
[1617737034317,0.1031754,58077.0,58076.0,5.37151233]
[1617737034817,0.1031754,58077.0,58076.0,5.51437394]
[1617737036019,0.1031754,58077.0,58076.0,5.37151233]
[1617737036820,0.1031754,58077.0,58076.0,4.37151233]
[1617737037222,0.1031754,58077.0,58076.0,5.37151233]
[1617737044334,0.1031754,58077.0,58076.0,5.47876888]
[1617737044535,0.1031754,58077.0,58076.0,6.04972283]
[1617737044736,0.1031754,58077.0,58076.0,5.94246628]
[1617737046637,0.1031754,58077.0,58076.0,5.37151233]
[1617737047037,0.1031754,58077.0,58076.0,5.94249443]
[1617737048640,0.1031754,58077.0,58076.0,5.37151233]
[1617737051343,0.1031754,58077.0,58076.0,5.94253634]
[1617737052344,0.1031754,58077.0,58076.0,6.04979289]
[1617737052545,0.1031754,58077.0,58076.0,5.94253634]
[1617737056453,0.1031754,58077.0,58076.0,5.37151233]
[1617737056852,0.1031754,58077.0,58076.0,5.94254302]
[1617737057452,0.1031754,58077.0,58076.0,5.37151233]
[1617737057754,0.1031754,58077.0,58076.0,3.04064127]
[1617737057952,3.8233254,58077.0,58076.0,2.04064127]
[1617737058152,3.8233254,58077.0,58076.0,2.88909127]
[1617737058353,3.8233254,58077.0,58076.0,2.2262317]
[1617737058755,3.8233254,58077.0,58076.0,2.31807946]
[1617737059256,3.8233254,58077.0,58076.0,2.2262317]
[1617737059856,3.8233254,58077.0,58076.0,1.2262317]
[1617737060056,3.8233254,58077.0,58076.0,2.2262317]
[1617737060456,3.8233254,58077.0,58076.0,1.2262317]
[1617737062661,0.2208254,58077.0,58076.0,1.2262317]
[1617737062861,0.1031754,58077.0,58076.0,1.2262317]
[1617737063063,0.1031754,58077.0,58076.0,4.7482317]
[1617737063362,0.1031754,58077.0,58076.0,5.7482317]
[1617737063661,0.1031754,58077.0,58076.0,5.84008467]
[1617737064465,0.1031754,58077.0,58076.0,2.31808467]
[1617737064665,3.8047754,58077.0,58076.0,2.31808467]
[1617737065463,3.8047754,58077.0,58076.0,2.2262317]
[1617737068167,3.9612454,58077.0,58076.0,2.2262317]
[1617737068569,3.9612454,58077.0,58076.0,1.2262317]
[1617737069068,3.9612454,58077.0,58076.0,2.2262317]
[1617737072074,3.9612454,58077.0,58076.0,1.2262317]
[1617737072673,3.9612454,58077.0,58076.0,0.71760961]
[1617737074874,3.9612454,58077.0,58076.0,0.76960961]
[1617737075074,3.9612454,58077.0,58076.0,0.71760961]
[1617737080587,3.9612454,58077.0,58076.0,0.27]
[1617737080891,3.9612454,58077.0,58071.0,0.27]
[1617737081089,3.9612454,58077.0,58076.0,0.44581511]
[1617737081589,3.8047754,58077.0,58076.0,0.71581511]
[1617737083992,3.8047754,58077.0,58076.0,0.86378511]
[1617737084493,3.8047754,58077.0,58076.0,1.86378511]
[1617737085305,3.8047754,58077.0,58076.0,0.86378511]
[1617737085596,3.8047754,58077.0,58076.0,0.71581511]
[1617737102820,0.1031754,58077.0,58076.0,1.27]
[1617737103022,0.1031754,58077.0,58076.0,4.3218]
[1617737103225,0.1031754,58077.0,58076.0,4.76993609]
[1617737103624,0.1031754,58077.0,58076.0,4.86179155]
[1617737104024,0.1031754,58077.0,58076.0,5.37098686]
[1617737104624,0.1031754,58077.0,58076.0,4.47824341]
[1617737104825,0.1031754,58077.0,58076.0,5.47824341]
[1617737108030,0.1031754,58077.0,58076.0,6.0478023]
[1617737108230,0.1031754,58077.0,58076.0,2.9960023]
[1617737108431,3.6567754,58077.0,58076.0,2.9960023]
[1617737108832,3.6567754,58077.0,58076.0,2.90414684]
[1617737109634,0.1031754,58077.0,58076.0,2.33458795]
[1617737110134,0.1031754,58077.0,58076.0,5.74538795]
[1617737110535,0.1031754,58077.0,58076.0,5.9800888]
[1617737111735,0.1031754,58077.0,58076.0,6.54944151]
[1617737114139,0.1031754,58077.0,58076.0,5.9800888]
[1617737115540,0.1031754,58077.0,58076.0,6.55007224]
[1617737116345,0.1031754,58077.0,58076.0,5.9800888]
[1617737116844,0.1031754,58077.0,58076.0,6.54988377]
[1617737118447,0.1031754,58077.0,58076.0,5.9800888]
[1617737118647,0.1031754,58077.0,58076.0,4.9800888]
[1617737118848,0.1031754,58077.0,58076.0,5.9800888]
[1617737126558,0.1031754,58077.0,58076.0,2.5692888]
[1617737126760,3.1005754,58077.0,58076.0,2.5692888]
[1617737127360,3.1005754,58077.0,58076.0,2.33458795]
[1617737128161,0.1031754,58077.0,58076.0,2.33458795]
[1617737128361,0.1031754,58077.0,58076.0,5.01848795]
[1617737129063,0.1031754,58077.0,58076.0,5.11032587]
[1617737129566,0.1031754,58077.0,58076.0,5.16182587]
[1617737130262,0.1031754,58077.0,58076.0,5.30467995]
[1617737130462,0.1281,58090.0,58076.0,5.25317995]
[1617737130662,0.1281,58090.0,58076.0,5.82149492]
[1617737130962,0.1281,58090.0,58089.0,1.10725655]
[1617737131164,0.1281,58090.0,58089.0,1.65432765]
[1617737131362,0.1281,58090.0,58089.0,1.92432765]
[1617737132764,0.23535655,58090.0,58089.0,1.92432765]
[1617737132965,0.23535655,58090.0,58089.0,2.43299559]
[1617737133164,0.23535655,58090.0,58089.0,6.12299559]
[1617737133765,0.23535655,58090.0,58089.0,6.21482389]
[1617737134065,0.10725655,58090.0,58089.0,6.21482389]
[1617737140378,0.10725655,58090.0,58089.0,2.52482389]
[1617737140778,0.10725655,58090.0,58089.0,5.17182389]
[1617737140978,0.10725655,58090.0,58089.0,4.57132765]
[1617737141479,0.10725655,58090.0,58089.0,5.17173973]
[1617737141780,0.10725655,58090.0,58089.0,4.66315504]
[1617737142781,0.10725655,58090.0,58089.0,5.17136647]
[1617737144681,0.10692226,58090.0,58089.0,5.17136647]
[1617737145584,0.10692226,58090.0,58089.0,5.31420333]
[1617737145982,0.10692226,58090.0,58089.0,5.17136647]
[1617737146283,0.10692226,58090.0,58089.0,5.3142037]
[1617737152690,0.10692226,58090.0,58089.0,5.17136647]
[1617737157597,0.10692226,58090.0,58089.0,5.31420385]
[1617737159400,0.10692226,58090.0,58089.0,5.17136647]
[1617737160900,0.10692226,58090.0,58089.0,5.31420564]
[1617737161302,0.10692226,58090.0,58089.0,4.12478655]
[1617737161702,0.10692226,58090.0,58089.0,5.08111147]
[1617737173717,0.10692226,58090.0,58089.0,4.97385492]
[1617737173919,0.21319226,58090.0,58089.0,2.32685492]
[1617737175318,0.21319226,58090.0,58089.0,1.87921347]
[1617737175618,0.21319226,58090.0,58089.0,1.77868347]
[1617737176822,0.21319226,58090.0,58089.0,0.77868347]
[1617737177022,0.10692226,58090.0,58089.0,1.77868347]
[1617737177824,0.10692226,58090.0,58089.0,1.88532347]
[1617737178224,0.10692226,58090.0,58089.0,4.65082347]
[1617737178724,0.10692226,58090.0,58089.0,4.742646]
[1617737179127,0.10692226,58090.0,58089.0,4.84990255]
[1617737179425,0.10692226,58090.0,58089.0,3.84990255]
[1617737179724,0.10692226,58090.0,58089.0,4.84990255]
[1617737185730,0.10692226,58090.0,58089.0,3.84990255]
[1617737185931,0.10692226,58090.0,58089.0,4.84990255]
[1617737186631,0.10692226,58090.0,58089.0,4.992733]
[1617737192736,0.10692226,58090.0,58089.0,5.44125546]
[1617737194637,2.88982226,58090.0,58089.0,2.56849891]
[1617737194839,3.03868226,58090.0,58089.0,1.46185891]
[1617737195638,3.03868226,58090.0,58089.0,1.22720593]
[1617737196238,3.03868226,58090.0,58089.0,2.22720593]
[1617737196539,3.03868226,58090.0,58089.0,1.22720593]
[1617737197539,0.25578226,58090.0,58089.0,1.22720593]
[1617737197742,0.10692226,58090.0,58089.0,1.22720593]
[1617737197940,0.10692226,58090.0,58089.0,2.22720593]
[1617737198640,0.10692226,58090.0,58089.0,1.22720593]
[1617737200744,0.10692226,58090.0,58089.0,2.22720593]
[1617737202146,0.10692226,58090.0,58089.0,2.79836403]
[1617737203247,0.10692226,58090.0,58089.0,2.22720593]
[1617737205547,0.10692226,58090.0,58089.0,2.79839006]
[1617737207953,0.10692226,58090.0,58089.0,1.27]
[1617737208554,0.10692226,58090.0,58089.0,2.22876015]
[1617737209358,0.10692226,58090.0,58089.0,4.78776015]
[1617737209854,0.10692226,58090.0,58089.0,5.35893452]
[1617737210054,0.10692226,58090.0,58089.0,5.45075493]
[1617737212455,0.10692226,58090.0,58089.0,4.87958056]
[1617737212955,0.10692226,58090.0,58089.0,2.46341285]
[1617737213455,0.10692226,58090.0,58089.0,2.32058056]
[1617737214056,0.10692226,58090.0,58089.0,2.22876015]
[1617737219361,0.10692226,58090.0,58089.0,2.36270015]
[1617737222165,0.10692226,58090.0,58089.0,2.45452059]
[1617737222364,0.10692226,58090.0,58089.0,2.32058059]
[1617737223063,0.10692226,58090.0,58089.0,2.22876015]
[1617737228569,0.10692226,58090.0,58089.0,2.34513015]
[1617737228769,0.10692226,58090.0,58089.0,6.04753015]
[1617737229371,0.10692226,58090.0,58089.0,6.28218726]
[1617737231271,0.10692226,58090.0,58089.0,2.57978726]
[1617737231874,2.78172226,58090.0,58089.0,2.57978726]
[1617737232072,2.78172226,58090.0,58089.0,2.34513015]
[1617737233072,2.78172226,58090.0,58089.0,1.8963488]
[1617737233674,2.78172226,58090.0,58089.0,0.7799788]
[1617737233974,2.78172226,58090.0,58089.0,1.7799788]
[1617737235275,2.78172226,58090.0,58089.0,0.7799788]
[1617737235675,2.78172226,58090.0,58089.0,1.7799788]
[1617737239079,2.78172226,58090.0,58089.0,0.7799788]
[1617737239279,2.78172226,58090.0,58089.0,1.7799788]
[1617737240383,2.78172226,58090.0,58089.0,0.7799788]
[1617737240583,2.78172226,58090.0,58089.0,1.7799788]
[1617737241086,2.78172226,58090.0,58089.0,0.7799788]
[1617737241284,2.78172226,58090.0,58089.0,1.7799788]
[1617737244086,2.78172226,58090.0,58089.0,0.7799788]
[1617737244386,2.83302226,58090.0,58089.0,1.8315788]
[1617737244586,2.78172226,58090.0,58089.0,1.7799788]
[1617737249295,2.78172226,58090.0,58089.0,0.7799788]
[1617737252198,2.78172226,58090.0,58089.0,1.7799788]
[1617737252799,2.78172226,58090.0,58089.0,2.22849008]
[1617737254203,2.78172226,58090.0,58089.0,1.22849008]
[1617737254402,2.78172226,58090.0,58089.0,2.22849008]
[1617737260917,2.78172226,58090.0,58089.0,1.22849008]
[1617737264519,2.78172226,58090.0,58089.0,2.22849008]
[1617737267023,2.78172226,58090.0,58089.0,1.22849008]
[1617737267224,2.78172226,58090.0,58089.0,2.22849008]
[1617737274331,2.78172226,58090.0,58089.0,2.34232008]
[1617737276333,0.10692226,58090.0,58089.0,2.34232008]
[1617737276633,0.10692226,58090.0,58089.0,5.05552008]
[1617737277436,0.10692226,58090.0,58089.0,5.14734393]
[1617737278437,0.10692226,58090.0,58089.0,5.29018142]
[1617737283145,0.10692226,58090.0,58089.0,4.29018142]
[1617737283345,0.10692226,58090.0,58089.0,5.29018142]
[1617737289450,0.10692226,58090.0,58089.0,2.43414393]
[1617737289651,3.79522226,58090.0,58089.0,2.32031393]
[1617737289852,3.84672226,58090.0,58089.0,2.22849008]
[1617737290152,3.79522226,58090.0,58089.0,2.22849008]
[1617737291455,3.79522226,58090.0,58089.0,1.22849008]
[1617737292455,3.79522226,58090.0,58089.0,0.71851128]
[1617737293755,5.29522226,58090.0,58089.0,0.71851128]
[1617737294055,5.49522226,58090.0,58089.0,0.71851128]
[1617737294256,5.49522226,58090.0,58089.0,0.27]
[1617737294656,5.49522226,58090.0,58064.0,0.71356285]
[1617737294657,5.99899013,58090.0,58082.0,0.27]
[1617737295056,5.49522226,58090.0,58089.0,0.27]
[1617737295256,5.49522226,58090.0,58078.0,0.27]
[1617737295658,0.10725655,58079.0,58077.0,0.50970032]
[1617737295857,0.10725655,58079.0,58064.0,1.0]
[1617737295858,0.20567655,58079.0,58075.0,0.50965349]
[1617737296057,0.20567655,58079.0,58078.0,0.27]
[1617737296357,0.20567655,58079.0,58074.0,0.50967037]
[1617737296758,0.20567655,58079.0,58078.0,0.01]
[1617737296957,0.20567655,58079.0,58075.0,0.26]
[1617737297157,1.70567655,58079.0,58077.0,0.27]
[1617737297457,1.70567655,58079.0,58078.0,0.02]
[1617737297656,1.70567655,58079.0,58075.0,0.76967064]
[1617737297657,1.70567655,58079.0,58072.0,0.50968451]
[1617737297859,1.70567655,58079.0,58078.0,0.03]
[1617737298358,1.70567655,58079.0,58072.0,0.50968451]
[1617737298359,1.70567655,58079.0,58077.0,0.25]
[1617737298657,1.70567655,58079.0,58078.0,0.03]
[1617737298857,1.70567655,58079.0,58071.0,0.50969138]
[1617737299058,1.5,58077.0,58074.0,0.02]
[1617737299257,1.5,58077.0,58071.0,0.50969138]
[1617737299557,0.10725655,58072.0,58071.0,0.50969138]
[1617737299957,0.10725655,58072.0,58071.0,0.77969138]
[1617737300760,0.10725655,58072.0,58071.0,0.27]
[1617737301061,0.10725655,58072.0,58070.0,0.50969638]
[1617737301260,0.10725655,58072.0,58069.0,0.509711]
[1617737301460,0.10725655,58072.0,58071.0,0.27]
[1617737301661,0.10725655,58072.0,58067.0,0.50971856]
[1617737301861,0.10725655,58072.0,58070.0,0.27]
[1617737302064,0.10725655,58072.0,58067.0,0.50971856]
[1617737302262,1.5,58071.0,58068.0,0.01]
[1617737302463,3.5065,58069.0,58068.0,0.01]
[1617737302664,3.5065,58069.0,58067.0,0.50971856]
[1617737302863,3.5065,58069.0,58068.0,0.27]
[1617737303464,3.5065,58069.0,58059.0,0.27]
[1617737303665,0.10725655,58066.0,58057.0,0.50750484]
[1617737303864,0.24068655,58066.0,58057.0,0.50750484]
[1617737304064,0.24068655,58066.0,58060.0,0.27]
[1617737304365,0.24068655,58066.0,58058.0,0.50750404]
[1617737304664,0.24068655,58066.0,58061.0,0.27]
[1617737305065,0.24068655,58066.0,58059.0,0.01]
[1617737305364,0.24068655,58066.0,58062.0,0.27]
[1617737305664,0.24068655,58066.0,58056.0,0.50751451]
[1617737305866,1.5,58065.0,58063.0,0.01]
[1617737306269,1.5,58063.0,58056.0,0.50751451]
[1617737306467,1.5,58063.0,58050.0,0.59916774]
[1617737306868,1.5,58061.0,58033.0,1.0]
[1617737307369,1.5,58061.0,58051.0,0.27]
[1617737307370,1.7,58061.0,58051.0,0.27]
[1617737307571,0.10725655,58052.0,58046.0,0.50734382]
[1617737307773,1.76604655,58052.0,58047.0,0.26]
[1617737308269,1.76604655,58052.0,58046.0,0.50734382]
[1617737308469,1.76604655,58052.0,58047.0,0.27]
[1617737309870,2.4834,58048.0,58047.0,0.27]
[1617737310069,2.4834,58048.0,58042.0,3.5332]
[1617737310070,2.4834,58048.0,58046.0,0.5173668]
[1617737310369,2.4834,58048.0,58047.0,0.26]
[1617737310869,2.4834,58048.0,58047.0,0.50736894]
[1617737311070,2.4834,58048.0,58047.0,0.77736894]
[1617737311271,0.10725655,58052.0,58047.0,1.89415894]
[1617737311573,0.10725655,58052.0,58051.0,3.2212]
[1617737311870,0.10725655,58052.0,58051.0,4.4912]
[1617737312371,0.10725655,58052.0,58051.0,4.58307338]
[1617737312971,0.10725655,58052.0,58051.0,1.36187338]
[1617737313172,3.04915655,58052.0,58051.0,2.31569405]
[1617737313574,3.04915655,58052.0,58051.0,1.71646925]
[1617737314874,0.10725655,58052.0,58051.0,2.22381983]
[1617737315074,0.10725655,58052.0,58051.0,5.66371983]
[1617737315774,0.10725655,58052.0,58051.0,5.15636925]
[1617737316175,0.10725655,58052.0,58051.0,5.24823932]
[1617737318176,0.10725655,58052.0,58051.0,5.40370932]
[1617737318879,0.10725655,58052.0,58051.0,4.40370932]
[1617737319377,0.10725655,58052.0,58051.0,4.24823932]
[1617737323685,0.10725655,58052.0,58051.0,5.24823932]
[1617737324085,0.10725655,58052.0,58051.0,4.24823932]
[1617737326791,0.10725655,58052.0,58051.0,3.7099]
[1617737327490,0.10725655,58052.0,58051.0,4.15531745]
[1617737327690,0.10725655,58052.0,58051.0,0.71541745]
[1617737327891,2.81495655,58052.0,58051.0,0.27]
[1617737328292,2.81495655,58052.0,58050.0,0.44541816]
[1617737328793,2.81495655,58052.0,58051.0,0.27]
[1617737329195,2.81495655,58052.0,58050.0,0.01]
[1617737329595,2.81495655,58052.0,58051.0,0.26]
[1617737329797,2.81495655,58052.0,58050.0,0.27]
[1617737329996,2.81495655,58052.0,58049.0,0.01]
[1617737330196,2.81495655,58052.0,58051.0,0.27]
[1617737330395,2.81495655,58052.0,58048.0,0.4453974]
[1617737330596,2.81495655,58052.0,58049.0,0.27]
[1617737330895,2.81495655,58052.0,58051.0,0.27]
[1617737331096,2.81495655,58052.0,58049.0,0.27]
[1617737331295,0.10725655,58052.0,58051.0,0.27]
[1617737331596,0.10725655,58052.0,58051.0,3.24366]
[1617737331997,0.10725655,58052.0,58051.0,3.51366]
[1617737332197,0.10725655,58052.0,58051.0,3.78092438]
[1617737332399,0.10725655,58052.0,58051.0,4.05092438]
[1617737332598,0.10725655,58052.0,58051.0,0.95892438]
[1617737332799,2.73775655,58052.0,58051.0,0.42166]
[1617737333098,2.73775655,58052.0,58051.0,0.27]
[1617737333498,2.73775655,58052.0,58050.0,0.01]
[1617737333798,2.73775655,58052.0,58051.0,0.26]
[1617737334098,2.73775655,58052.0,58050.0,0.27]
[1617737334499,0.10725655,58052.0,58051.0,0.27]
[1617737334700,0.10725655,58052.0,58051.0,0.11014]
[1617737334901,0.10725655,58052.0,58051.0,2.96844]
[1617737335199,0.10725655,58052.0,58051.0,3.23844]
[1617737335399,0.10725655,58052.0,58051.0,2.96844]
[1617737335800,0.10725655,58052.0,58051.0,3.68383309]
[1617737338505,1.60725655,58052.0,58048.0,1.0]
[1617737338708,4.0465,58046.0,58045.0,0.50612859]
[1617737339106,4.0465,58046.0,58011.0,1.0]
[1617737339506,1.0,58039.0,58010.0,1.0]
[1617737339707,1.7,58038.0,58010.0,1.0]
[1617737339907,1.7,58038.0,58012.0,0.27]
[1617737340109,1.5,58038.0,58011.0,1.01]
[1617737340408,1.5,58038.0,58007.0,0.27]
[1617737340409,1.5,58038.0,58022.0,1.0]
[1617737340706,1.5,58038.0,58025.0,1.0]
[1617737340907,1.5,58038.0,58026.0,1.0]
[1617737341406,1.5,58038.0,58027.0,0.27]
[1617737341608,2.9116,58028.0,58027.0,0.27]
[1617737341908,0.10725655,58028.0,58027.0,0.27]
[1617737342209,0.10725655,58028.0,58027.0,1.27]
[1617737342407,0.10725655,58028.0,58027.0,3.7716]
[1617737342610,0.10725655,58028.0,58027.0,4.0416]
[1617737343008,0.10725655,58028.0,58027.0,3.7716]
[1617737343210,0.10725655,58028.0,58027.0,4.0416]
[1617737343910,0.10725655,58028.0,58027.0,4.14885655]
[1617737344110,0.10725655,58028.0,58027.0,10.64885655]
[1617737344310,0.49760511,58059.0,58027.0,10.84885655]
[1617737344812,0.49771007,58061.0,58053.0,1.0]
[1617737345012,0.49771007,58061.0,58058.0,1.0]
[1617737345313,1.012717,58070.0,58056.0,1.0]
[1617737345314,0.4978549,58062.0,58056.0,1.0]
[1617737345511,0.4978549,58062.0,58059.0,0.01]
[1617737345711,0.4978549,58062.0,58057.0,0.26]
[1617737345912,0.10725655,58058.0,58056.0,0.01]
[1617737346114,0.10725655,58058.0,58053.0,1.14478]
[1617737346514,0.10725655,58058.0,58057.0,0.27]
[1617737346713,0.10725655,58058.0,58054.0,0.01]
[1617737346914,0.10725655,58058.0,58053.0,1.14478]
[1617737347113,0.10725655,58058.0,58057.0,0.26]
[1617737347314,0.10725655,58058.0,58054.0,0.02]
[1617737347614,0.10725655,58058.0,58057.0,0.27]
[1617737348014,0.10725655,58058.0,58056.0,1.0]
[1617737348414,0.10725655,58058.0,58057.0,0.26]
[1617737348715,0.10725655,58058.0,58017.0,3.311]
[1617737348716,3.48686655,58058.0,58041.0,1.0]
[1617737348914,3.48686655,58058.0,58054.0,0.27]
[1617737349214,3.48686655,58058.0,58053.0,0.27]
[1617737349416,0.19454264,58057.0,58055.0,0.01]
[1617737349816,0.19454264,58057.0,58054.0,0.27]
[1617737350116,0.19454264,58057.0,58056.0,0.01]
[1617737350319,0.19454264,58057.0,58055.0,0.01]
[1617737350617,0.19454264,58057.0,58044.0,0.26]
[1617737350817,0.19454264,58057.0,58056.0,0.01]
[1617737351017,0.19454264,58057.0,58043.0,0.26]
[1617737351217,0.19454264,58057.0,58045.0,0.26]
[1617737351418,3.5665,58049.0,58045.0,0.26]
[1617737351617,3.5665,58049.0,58044.0,0.25]
[1617737351916,0.10725655,58045.0,58041.0,1.0]
[1617737352317,0.10725655,58045.0,58043.0,0.27]
[1617737352520,0.10725655,58045.0,58042.0,0.03]
[1617737352717,0.10725655,58045.0,58041.0,1.0]
[1617737352919,0.10725655,58045.0,58042.0,0.27]
[1617737353920,3.4718,58043.0,58042.0,0.27]
[1617737354120,3.58114,58043.0,58037.0,0.27]
[1617737354320,3.58114,58043.0,58034.0,1.0]
[1617737354321,0.10934,58043.0,58042.0,0.01]
[1617737354521,0.10934,58043.0,58038.0,0.27]
[1617737354722,0.17609504,58042.0,58038.0,0.27]
[1617737355021,4.08263448,58043.0,58022.0,1.0]
[1617737355022,0.49931125,58040.0,58022.0,1.0]
[1617737355427,0.17594547,58042.0,58039.0,0.26]
[1617737355624,0.17594547,58042.0,58023.0,1.01]
[1617737355824,0.17594547,58042.0,58023.0,1.0]
[1617737355825,0.49919469,58037.0,58023.0,1.0]
[1617737356024,0.10725655,58024.0,58023.0,1.0]
[1617737356225,0.24857655,58024.0,58023.0,1.0]
[1617737356525,0.24857655,58024.0,58023.0,0.27]
[1617737356727,0.24857655,58024.0,58023.0,1.27]
[1617737356926,0.24857655,58024.0,58023.0,1.0]
[1617737357227,0.24857655,58024.0,58023.0,1.26]
[1617737357426,0.24857655,58024.0,58023.0,0.26]
[1617737357929,0.24857655,58024.0,58018.0,1.0]
[1617737357930,3.89327655,58024.0,58018.0,1.0]
[1617737358127,3.89327655,58024.0,58023.0,0.27]
[1617737358327,3.89327655,58024.0,58019.0,0.01]
[1617737358827,3.89327655,58024.0,58015.0,1.0]
[1617737359028,3.89327655,58024.0,58020.0,0.27]
[1617737359229,3.89327655,58024.0,58016.0,0.27]
[1617737359628,3.89327655,58024.0,58021.0,0.27]
[1617737359830,3.89327655,58024.0,58017.0,0.01]
[1617737360030,3.78602,58024.0,58022.0,0.26]
[1617737360329,3.78602,58024.0,58016.0,0.26]
[1617737360730,3.78602,58024.0,58011.0,1.0]
[1617737360731,3.78602,58024.0,58023.0,0.27]
[1617737360931,3.78602,58024.0,58013.0,0.02]
[1617737361230,3.78602,58024.0,58011.0,1.0]
[1617737361430,3.78602,58024.0,58014.0,0.27]
[1617737361829,3.78602,58024.0,58012.0,0.27]
[1617737362030,0.10725655,58013.0,58011.0,1.0]
[1617737362432,0.10725655,58013.0,58012.0,0.27]
[1617737362732,0.10725655,58013.0,58012.0,1.27]
[1617737363134,0.10725655,58013.0,58012.0,1.13573]
[1617737363433,0.10725655,58013.0,58012.0,4.30453]
[1617737364033,0.10725655,58013.0,58012.0,4.41178655]
[1617737366634,0.10725655,58013.0,58012.0,3.41178655]
[1617737367138,0.10725655,58013.0,58012.0,4.30453]
[1617737367543,0.10725655,58013.0,58012.0,3.30453]
[1617737367942,0.10725655,58013.0,58012.0,4.30453]
[1617737368137,0.22474655,58013.0,58012.0,4.30453]
[1617737368439,0.22474655,58013.0,58012.0,3.30453]
[1617737368837,0.22474655,58013.0,58012.0,4.30453]
[1617737369342,0.10725655,58013.0,58012.0,4.30453]
[1617737371944,0.10725655,58013.0,58012.0,4.41178655]
[1617737379855,0.10725655,58013.0,58012.0,1.51298655]
[1617737380956,0.10725655,58013.0,58012.0,1.37725655]
[1617737381558,0.10725655,58013.0,58012.0,1.27]
[1617737381959,0.10725655,58013.0,58012.0,4.212]
[1617737383861,0.10725655,58013.0,58012.0,4.3342]
[1617737388063,0.10725655,58013.0,58012.0,4.212]
[1617737390064,0.10725655,58013.0,58012.0,4.31925655]
[1617737394872,0.10725655,58013.0,58012.0,4.212]
[1617737397980,0.10725655,58013.0,58012.0,4.33086]
[1617737400681,0.10725655,58013.0,58012.0,0.27]
[1617737400882,3.26496655,58013.0,58012.0,0.27]
[1617737401181,3.26496655,58013.0,58012.0,1.27]
[1617737401582,3.26496655,58013.0,58012.0,1.0]
[1617737401782,3.26496655,58013.0,58012.0,1.27]
[1617737404183,3.26496655,58013.0,58012.0,0.27]
[1617737404584,3.26496655,58013.0,57998.0,0.27]
[1617737404986,3.26496655,58013.0,58012.0,0.27]
[1617737405185,3.26496655,58013.0,57997.0,0.10725655]
[1617737405186,3.26496655,58013.0,57998.0,0.27]
[1617737405686,3.26496655,58013.0,58012.0,1.27]
[1617737405886,3.26496655,58013.0,58012.0,1.0]
[1617737406086,3.26496655,58013.0,58012.0,1.27]
[1617737406588,0.22176655,58013.0,58012.0,1.27]
[1617737406887,0.22176655,58013.0,58012.0,2.8706]
[1617737409790,0.10725655,58013.0,58012.0,2.8706]
[1617737409989,0.10725655,58013.0,58012.0,0.27]
[1617737410490,0.10725655,58013.0,58011.0,1.27]
[1617737410689,0.10725655,58013.0,58012.0,0.27]
[1617737410990,0.10725655,58013.0,57998.0,3.0122]
[1617737411189,0.10725655,58013.0,58012.0,1.0]
[1617737411589,0.10725655,58013.0,58012.0,1.27]
[1617737412589,0.10725655,58013.0,58012.0,0.27]
[1617737412989,0.10725655,58013.0,58011.0,1.0]
[1617737413191,0.23419655,58013.0,58011.0,1.0]
[1617737413490,0.23419655,58013.0,58012.0,0.27]
[1617737413690,0.23419655,58013.0,58011.0,1.0]
[1617737413891,0.23419655,58013.0,58012.0,0.27]
[1617737414592,0.23419655,58013.0,58012.0,1.27]
[1617737414793,0.23419655,58013.0,58012.0,1.0]
[1617737415192,0.23419655,58013.0,58012.0,1.27]
[1617737415794,0.23419655,58013.0,58012.0,0.27]
[1617737415993,0.10725655,58013.0,58012.0,0.27]
[1617737416193,0.10725655,58013.0,57999.0,0.27]
[1617737416593,0.10725655,58013.0,57998.0,3.0022]
[1617737416594,0.10725655,58013.0,58012.0,0.27]
[1617737416793,0.10725655,58013.0,57999.0,0.27]
[1617737417293,0.10725655,58013.0,58012.0,1.27]
[1617737417496,0.10725655,58013.0,58012.0,1.15312]
[1617737417694,0.10725655,58013.0,58012.0,1.41312]
[1617737418296,0.10725655,58013.0,58012.0,4.19532]
[1617737419496,0.10725655,58013.0,58012.0,1.41312]
[1617737420497,0.10725655,58013.0,58012.0,0.41312]
[1617737420799,0.10725655,58013.0,58012.0,1.41312]
[1617737421399,0.10725655,58013.0,58012.0,4.40242]
[1617737422298,0.10725655,58013.0,58012.0,1.41312]
[1617737423604,0.10725655,58013.0,58012.0,0.41312]
[1617737423803,0.10725655,58013.0,58012.0,4.05512]
[1617737429312,0.10725655,58013.0,58012.0,1.41312]
[1617737437922,0.10725655,58013.0,58012.0,4.90822]
[1617737441729,0.10725655,58013.0,58012.0,3.90822]
[1617737441930,0.10725655,58013.0,58012.0,4.90822]
[1617737444132,0.10725655,58013.0,58012.0,6.40822]
[1617737445535,0.17430325,58032.0,58012.0,6.40822]